bitfinex/quotes_SOLUSD_20240829
["timestamp","ask_amount","ask_price","bid_price","bid_amount"]
[1724908737054,20.0,144.4,144.34,22.4933]
[1724908738653,20.0,144.41,144.34,22.4933]
[1724908740374,26.925,144.41,144.34,22.4933]
[1724908740957,20.0,144.41,144.34,22.4933]
[1724908741166,20.0,144.42,144.34,22.4933]
[1724908741354,26.9243,144.42,144.34,22.4933]
[1724908741679,39.25670674,144.41,144.34,22.4933]
[1724908741974,20.0,144.4,144.34,22.4933]
[1724908743576,26.9253,144.4,144.36,6.9269]
[1724908743868,26.9253,144.4,144.34,22.4933]
[1724908743869,32.45739674,144.39,144.34,22.4933]
[1724908744073,20.0,144.38,144.34,22.4933]
[1724908744669,32.33190674,144.38,144.34,22.4933]
[1724908745263,39.25810674,144.38,144.34,29.4213]
[1724908745665,6.9262,144.38,144.34,29.4213]
[1724908747260,39.25810674,144.38,144.34,22.4933]
[1724908747566,32.45739674,144.39,144.34,22.4933]
[1724908747771,71.9262,144.38,144.34,22.4933]
[1724908748160,20.0,144.38,144.34,29.421]
[1724908748362,20.0,144.38,144.35,6.9275]
[1724908748773,20.0,144.38,144.36,6.9267]
[1724908748976,20.0,144.4,144.36,6.9267]
[1724908751075,20.0,144.4,144.39,6.9256]
[1724908751279,20.0,144.4,144.38,6.926]
[1724908751486,20.0,144.42,144.38,6.926]
[1724908751773,26.9243,144.42,144.38,6.926]
[1724908754678,39.25710674,144.4,144.34,22.4933]
[1724908754861,27.05129,144.39,144.35,6.9272]
[1724908755462,27.05129,144.39,144.34,29.4212]
[1724908756163,45.0,144.38,144.34,29.4212]
[1724908756568,51.9264,144.38,144.34,29.4212]
[1724908757362,20.0,144.39,144.35,6.9275]
[1724908760883,20.0,144.39,144.36,6.9267]
[1724908762389,20.0,144.39,144.37,6.9265]
[1724908762760,1.20718613,144.43,144.34,22.4933]
[1724908762961,1.20718613,144.43,144.39,6.9256]
[1724908763161,1.20718613,144.43,144.35,12.93330389]
[1724908763356,19.85620389,144.45,144.36,0.25098]
[1724908763557,6.9232,144.44,144.4,6.925]
[1724908764478,20.0,144.43,144.4,6.925]
[1724908764962,12.93330389,144.41,144.38,6.926]
[1724908765170,32.93330389,144.43,144.38,6.926]
[1724908765664,39.85710389,144.43,144.38,6.926]
[1724908766379,20.0,144.43,144.41,6.9245]
[1724908766582,12.93330389,144.43,144.4,6.9252]
[1724908766882,20.0,144.42,144.4,6.9252]
[1724908767183,20.0,144.42,144.4,6.925]
[1724908767388,20.0,144.42,144.34,35.42660389]
[1724908767969,26.9242,144.42,144.34,22.4933]
[1724908768586,6.9253,144.4,144.35,6.9275]
[1724908768769,12.93330389,144.39,144.36,6.927]
[1724908770963,19.85910389,144.39,144.35,6.9274]
[1724908771988,12.93330389,144.39,144.35,6.9274]
[1724908776175,6.9253,144.4,144.36,6.9269]
[1724908776370,20.0,144.39,144.36,6.9269]
[1724908777376,20.0,144.39,144.35,6.9272]
[1724908779396,20.0,144.39,144.36,6.927]
[1724908780374,13.77334781,144.42,144.38,6.9261]
[1724908780577,20.0,144.41,144.38,6.9261]
[1724908781289,20.0,144.41,144.39,6.9256]
[1724908782090,13.77334781,144.42,144.39,6.9256]
[1724908782306,13.77334781,144.42,144.4,6.9251]
[1724908782674,19.85670389,144.44,144.4,6.9251]
[1724908782867,20.0,144.43,144.4,6.9251]
[1724908785909,26.9238,144.43,144.39,6.9255]
[1724908786772,6.9245,144.42,144.38,6.926]
[1724908786985,20.0,144.41,144.37,6.9262]
[1724908787287,26.9247,144.41,144.37,6.9262]
[1724908789303,20.0,144.41,144.34,22.4933]
[1724908789595,6.9255,144.4,144.34,22.4933]
[1724908791185,6.9257,144.39,144.34,16.1148]
[1724908791398,20.0,144.38,144.34,16.1148]
[1724908796009,15.57199,144.42,144.34,16.1148]
[1724908796010,28.50529389,144.42,144.34,16.1148]
[1724908796305,20.0,144.41,144.34,16.1148]
[1724908796803,26.925,144.41,144.34,16.1148]
[1724908799790,20.0,144.41,144.34,16.1148]
[1724908800593,20.0,144.42,144.35,6.71049]
[1724908803714,20.0,144.42,144.36,1.38508357]
[1724908804312,26.9246,144.42,144.35,6.585]
[1724908804808,12.93330389,144.41,144.35,6.585]
[1724908806109,19.85820389,144.41,144.35,6.585]
[1724908808413,20.0,144.4,144.34,16.1148]
[1724908809294,6.926,144.39,144.34,16.1148]
[1724908809693,26.9253,144.4,144.34,16.1148]
[1724908811516,12.93330389,144.37,144.31,6.3631]
[1724908812319,12.93330389,144.37,144.31,7.4569705]
[1724908815098,12.93330389,144.37,144.31,6.3631]
[1724908818403,19.86120389,144.35,144.27,6.2815]
[1724908818719,19.86180389,144.33,144.27,6.2815]
[1724908818899,12.93330389,144.33,144.27,6.2815]
[1724908819607,12.93330389,144.33,144.26,15.5345]
[1724908820318,19.86190389,144.33,144.26,15.5345]
[1724908820925,20.0,144.32,144.26,15.5345]
[1724908821227,19.86280389,144.31,144.23,6.243]
[1724908821723,45.0,144.3,144.23,6.243]
[1724908822130,20.0,144.32,144.23,6.243]
[1724908822316,12.93330389,144.32,144.23,6.243]
[1724908822521,20.0,144.31,144.23,6.243]
[1724908824309,20.0,144.31,144.24,1.38392942]
[1724908827227,20.0,144.31,144.23,6.243]
[1724908827432,20.0,144.31,144.24,0.12549]
[1724908827631,12.93330389,144.3,144.23,6.243]
[1724908828232,20.0,144.31,144.23,6.243]
[1724908828421,32.93330389,144.34,144.24,13.05879389]
[1724908828735,52.05409,144.33,144.24,13.05879389]
[1724908828906,20.0,144.32,144.24,13.05879389]
[1724908829346,1.20790658,144.33,144.25,0.12549]
[1724908830539,1.20790658,144.33,144.25,1.50888571]
[1724908831628,1.20790658,144.33,144.26,15.2266]
[1724908831931,1.20790658,144.33,144.27,1.38392434]
[1724908832510,20.0,144.34,144.27,1.38392434]
[1724908833414,26.9281,144.34,144.27,1.38392434]
[1724908833622,12.93330389,144.33,144.26,15.2266]
[1724908835242,19.86190389,144.33,144.26,15.2266]
[1724908836878,20.12549,144.34,144.26,15.2266]
[1724908837138,20.0,144.34,144.26,15.2266]
[1724908837317,8.13498846,144.36,144.27,14.31924233]
[1724908837514,8.13498846,144.36,144.28,6.2248]
[1724908837715,1.20778846,144.36,144.29,1.38583973]
[1724908837921,12.93330389,144.35,144.28,6.2248]
[1724908838731,45.0,144.34,144.28,6.2248]
[1724908838931,20.0,144.33,144.28,6.2248]
[1724908839116,32.93330389,144.33,144.26,15.2266]
[1724908840145,39.86190389,144.33,144.26,15.2266]
[1724908840319,6.9291,144.32,144.26,15.2266]
[1724908840515,39.86200389,144.33,144.26,15.2266]
[1724908841420,39.86200389,144.33,144.27,1.3565803]
[1724908841625,39.86200389,144.33,144.26,16.49927514]
[1724908841826,39.86200389,144.33,144.27,1.27258692]
[1724908842435,32.93330389,144.33,144.27,1.27441787]
[1724908843028,32.93330389,144.33,144.26,15.2266]
[1724908845644,32.93330389,144.33,144.26,16.61275186]
[1724908846447,32.93330389,144.33,144.26,15.2266]
[1724908847026,12.93330389,144.31,144.26,15.2266]
[1724908847230,12.93330389,144.29,144.25,6.4517]
[1724908847433,12.93330389,144.29,144.22,21.9606]
[1724908853644,21.0712232,144.31,144.22,21.9606]
[1724908853846,20.0,144.3,144.22,21.9606]
[1724908854753,20.0,144.3,144.23,12.93330389]
[1724908854951,20.0,144.31,144.23,12.93330389]
[1724908856043,12.93330389,144.31,144.24,0.12549]
[1724908856260,20.0,144.3,144.22,21.9606]
[1724908856551,20.0,144.3,144.22,34.89390389]
[1724908859657,20.0,144.3,144.23,1.38407759]
[1724908859845,20.0,144.3,144.24,1.38398163]
[1724908860035,20.0,144.3,144.23,1.38440916]
[1724908860237,20.0,144.3,144.22,34.89390389]
[1724908861160,21.06997873,144.33,144.25,15.516]
[1724908861349,20.0,144.32,144.25,15.516]
[1724908861545,1.20807484,144.33,144.26,19.26540389]
[1724908861853,21.7143,144.38,144.29,15.516]
[1724908861854,12.93330389,144.38,144.29,15.516]
[1724908862048,19.85950389,144.38,144.3,6.3321]
[1724908862359,19.85950389,144.38,144.31,1.38573446]
[1724908863155,20.0,144.37,144.31,1.38573446]
[1724908865947,21.065936,144.4,144.31,1.38573446]
[1724908866254,20.0,144.39,144.31,1.38573446]
[1724908867060,26.9257,144.39,144.3,19.26540389]
[1724908867258,12.93330389,144.38,144.3,6.3321]
[1724908869949,12.93330389,144.36,144.3,6.3321]
[1724908870140,12.93330389,144.34,144.3,6.3321]
[1724908871051,13.05879389,144.37,144.3,7.7181214]
[1724908871250,20.0,144.36,144.3,7.7181214]
[1724908871648,20.0,144.36,144.3,6.3321]
[1724908873246,20.0,144.38,144.3,6.3321]
[1724908875974,20.0,144.38,144.3,19.26540389]
[1724908881656,32.93330389,144.38,144.3,19.26540389]
[1724908882281,34.14069494,144.38,144.3,19.26540389]
[1724908882576,34.14069494,144.38,144.3,6.3321]
[1724908883470,21.20739105,144.38,144.3,6.3321]
[1724908883658,41.06689494,144.38,144.3,6.3321]
[1724908884260,34.14069494,144.38,144.3,6.3321]
[1724908885180,21.20739105,144.38,144.3,19.26540389]
[1724908885658,21.20739105,144.38,144.31,0.35723371]
[1724908886481,20.0,144.38,144.31,0.35723371]
[1724908887058,20.0,144.38,144.3,19.26540389]
[1724908890185,20.0,144.38,144.31,1.38553137]
[1724908890476,20.0,144.38,144.3,19.26540389]
[1724908891085,20.0,144.38,144.31,0.76845442]
[1724908891958,20.0,144.38,144.31,1.38559144]
[1724908892379,20.0,144.38,144.3,19.26540389]
[1724908893585,20.0,144.38,144.31,1.38559218]
[1724908898599,20.0,144.38,144.32,15.8087]
[1724908898774,26.9257,144.39,144.32,15.8087]
[1724908899086,20.0,144.39,144.33,1.38559592]
[1724908899593,1.20732818,144.41,144.33,1.38559592]
[1724908899788,21.20732818,144.41,144.33,1.38559592]
[1724908900089,1.20732818,144.41,144.34,18.96900389]
[1724908900268,2.7999901,144.44,144.36,15.5637]
[1724908900474,19.85690389,144.44,144.36,15.5637]
[1724908901684,20.0,144.43,144.36,15.5637]
[1724908901996,12.93330389,144.42,144.36,15.5637]
[1724908903297,21.06481374,144.42,144.36,15.5637]
[1724908903875,20.0,144.43,144.37,6.2614]
[1724908905276,12.93330389,144.42,144.37,6.2614]
[1724908910881,51.33263743,144.44,144.36,15.5637]
[1724908910882,12.93330389,144.4,144.36,15.5637]
[1724908912272,20.0,144.41,144.36,15.5637]
[1724908912604,20.0,144.42,144.36,15.5637]
[1724908916408,20.0,144.42,144.37,7.41104046]
[1724908917013,20.0,144.43,144.37,7.41104046]
[1724908920889,20.0,144.43,144.37,6.0285]
[1724908923998,20.0,144.43,144.37,7.41356648]
[1724908924503,1.20688372,144.42,144.37,6.0285]
[1724908924715,20.0,144.44,144.37,6.0285]
[1724908924916,12.93330389,144.41,144.37,6.0285]
[1724908926708,12.93330389,144.39,144.33,22.4033]
[1724908926922,20.0,144.38,144.33,22.4033]
[1724908930715,19.85810389,144.41,144.33,22.4033]
[1724908931413,19.85810389,144.41,144.34,1.38317353]
[1724908932208,20.0,144.4,144.34,1.38317353]
[1724908933315,20.0,144.4,144.33,22.4033]
[1724908936117,20.0,144.4,144.34,0.12549]
[1724908936309,20.0,144.4,144.33,22.4033]
[1724908936915,12.93330389,144.39,144.33,22.4033]
[1724908937522,20.0,144.38,144.33,22.4033]
[1724908938522,6.9253,144.4,144.33,22.4033]
[1724908938523,20.0,144.39,144.33,22.4033]
[1724908943734,20.0,144.39,144.34,1.38550011]
[1724908943924,20.0,144.4,144.34,1.38550011]
[1724908944124,32.93330389,144.41,144.34,1.38550011]
[1724908944510,12.93330389,144.41,144.34,1.38550011]
[1724908945936,20.0,144.4,144.34,1.38550011]
[1724908946452,20.0,144.4,144.33,22.4033]
[1724908949034,20.0,144.4,144.34,1.38534525]
[1724908956049,28.13113738,144.43,144.35,0.12549]
[1724908956544,26.9238,144.43,144.36,15.3834]
[1724908956755,26.9238,144.43,144.37,1.37419709]
[1724908958450,20.0,144.43,144.37,1.37419709]
[1724908958747,26.9239,144.43,144.37,1.37419709]
[1724908960132,26.9239,144.43,144.36,15.3834]
[1724908960838,26.9239,144.43,144.37,6.6441]
[1724908960839,20.0,144.43,144.37,6.6441]
[1724908963443,21.20711405,144.44,144.37,6.6441]
[1724908966639,28.13041405,144.44,144.37,6.6441]
[1724908967449,12.93330389,144.43,144.37,6.6441]
[1724908967830,19.85700389,144.43,144.37,6.6441]
[1724908973357,12.93330389,144.43,144.37,6.6441]
[1724908973557,28.13051405,144.44,144.37,6.6441]
[1724908975857,28.13051405,144.44,144.37,8.02923185]
[1724908978258,21.20711405,144.44,144.37,8.02923185]
[1724908978444,1.20711405,144.44,144.37,8.02923185]
[1724908978649,12.93330389,144.47,144.37,8.02923185]
[1724908978958,20.0,144.46,144.37,8.02923185]
[1724908979156,26.9226,144.46,144.37,8.02923185]
[1724908983768,39.85590389,144.46,144.37,8.02923185]
[1724908984344,12.93330389,144.44,144.37,6.6441]
[1724908984549,19.85670389,144.44,144.37,6.6441]
[1724908985558,20.0,144.43,144.37,6.6441]
[1724908987964,12.93330389,144.42,144.37,6.6441]
[1724908988157,20.0,144.41,144.37,6.6441]
[1724908991963,12.93330389,144.4,144.37,6.6441]
[1724908995473,20.0,144.41,144.37,6.6441]
[1724908999358,20.0,144.43,144.37,8.02786037]
[1724908999679,32.93330389,144.44,144.37,8.02786037]
[1724909000359,39.85660389,144.44,144.37,8.02786037]
[1724909002378,39.85660389,144.44,144.37,6.6441]
[1724909003982,19.85790389,144.42,144.37,6.6441]
[1724909004681,12.93330389,144.42,144.37,6.6441]
[1724909005879,32.93330389,144.44,144.37,6.6441]
[1724909006261,32.93330389,144.44,144.38,1.38507229]
[1724909008180,39.85670389,144.44,144.38,1.38507229]
[1724909009082,6.9237,144.43,144.37,6.6441]
[1724909009279,32.93330389,144.42,144.37,6.6441]
[1724909010394,20.0,144.42,144.37,8.02930838]
[1724909010765,20.0,144.43,144.37,8.02930838]
[1724909010965,26.9238,144.43,144.37,8.02930838]
[1724909011165,26.9238,144.43,144.37,6.6441]
[1724909011166,12.93330389,144.42,144.37,6.6441]
[1724909017103,20.0,144.43,144.37,8.02872585]
[1724909017592,20.0,144.44,144.37,8.02872585]
[1724909018378,26.9232,144.44,144.37,8.02872585]
[1724909019402,12.93330389,144.43,144.37,8.02872585]
[1724909020297,12.93330389,144.43,144.37,6.6441]
[1724909021078,19.85720389,144.43,144.37,6.6441]
[1724909022177,1.2071492,144.42,144.37,6.6441]
[1724909027993,8.1313492,144.42,144.37,6.6441]
[1724909028308,19.85810389,144.41,144.37,6.6441]
[1724909028502,39.85810389,144.41,144.37,6.6441]
[1724909028707,19.85810389,144.41,144.37,6.6441]
[1724909029002,20.0,144.4,144.37,6.6441]
[1724909031881,20.0,144.4,144.36,15.3834]
[1724909032080,12.93330389,144.39,144.36,15.3834]
[1724909033516,20.0,144.38,144.33,6.1603]
[1724909045814,1.20747115,144.39,144.35,15.2867]
[1724909046004,6.9228,144.45,144.36,7.2656709]
[1724909046005,12.93330389,144.44,144.36,7.2656709]
[1724909046194,19.85660389,144.44,144.36,7.2656709]
[1724909046396,1.20692096,144.45,144.36,7.2656709]
[1724909046614,12.93330389,144.44,144.36,7.2656709]
[1724909046997,6.9242,144.42,144.36,7.2656709]
[1724909047313,19.85750389,144.42,144.36,6.6501]
[1724909047715,20.0,144.41,144.36,6.6501]
[1724909050397,20.0,144.43,144.36,6.6501]
[1724909050917,12.93330389,144.42,144.36,6.6501]
[1724909051117,20.0,144.41,144.36,6.6501]
[1724909052093,6.9252,144.4,144.36,6.6501]
[1724909052407,12.93330389,144.4,144.36,6.6501]
[1724909062131,20.0,144.41,144.36,6.6501]
[1724909064221,12.93330389,144.4,144.36,6.6501]
[1724909067928,20.0,144.39,144.35,15.2867]
[1724909068222,12.93330389,144.38,144.35,15.2867]
[1724909081621,12.93330389,144.36,144.32,6.6486]
[1724909081820,12.93330389,144.36,144.3,15.4705]
[1724909081821,12.93330389,144.34,144.3,15.4705]
[1724909082518,20.0,144.35,144.3,15.4705]
[1724909082727,20.0,144.37,144.31,1.38313524]
[1724909087446,12.93330389,144.36,144.3,15.4705]
[1724909087645,20.0,144.35,144.3,15.4705]
[1724909096060,26.9276,144.35,144.3,15.4705]
[1724909096440,19.86140389,144.34,144.3,15.4705]
[1724909096764,20.0,144.33,144.3,15.4705]
[1724909097851,20.0,144.34,144.3,15.4705]
[1724909099658,20.0,144.34,144.28,6.0897]
[1724909099659,6.9292,144.32,144.28,6.0897]
[1724909099962,19.86180389,144.33,144.28,6.0897]
[1724909101963,20.0,144.32,144.28,6.0897]
[1724909102142,26.9291,144.32,144.28,6.0897]
[1724909102338,6.9275,144.36,144.28,6.0897]
[1724909102562,72.05319,144.35,144.28,6.0897]
[1724909102858,84.98649389,144.35,144.28,6.0897]
[1724909103062,1.20770585,144.37,144.29,15.739]
[1724909103269,1.20770585,144.37,144.29,28.67230389]
[1724909103439,6.9261,144.39,144.29,28.67230389]
[1724909103758,19.85950389,144.38,144.29,28.67230389]
[1724909103960,19.85950389,144.38,144.29,15.739]
[1724909104447,12.93330389,144.37,144.29,15.739]
[1724909105753,12.93330389,144.37,144.3,1.38566181]
[1724909106252,20.0,144.36,144.3,1.38566181]
[1724909106965,26.9274,144.36,144.3,1.38566181]
[1724909107157,12.93330389,144.35,144.29,15.739]
[1724909107862,19.86120389,144.35,144.29,15.739]
[1724909108050,20.0,144.34,144.29,15.739]
[1724909108665,20.0,144.35,144.29,15.739]
[1724909111158,12.93330389,144.36,144.29,15.739]
[1724909111463,20.0,144.35,144.29,15.739]
[1724909112267,20.0,144.35,144.3,0.52552847]
[1724909112948,1.20746734,144.39,144.32,6.2227]
[1724909113152,12.93330389,144.38,144.32,6.2227]
[1724909113853,19.85960389,144.38,144.32,6.2227]
[1724909114164,12.93330389,144.36,144.32,6.2227]
[1724909114365,19.86150389,144.34,144.31,15.3326]
[1724909115080,12.93330389,144.34,144.31,15.3326]
[1724909115676,12.93330389,144.34,144.28,6.2605]
[1724909116169,12.93330389,144.32,144.28,6.2605]
[1724909116361,26.9295,144.31,144.27,16.1346]
[1724909116565,12.93330389,144.3,144.24,21.966]
[1724909117179,26.9295,144.31,144.24,21.966]
[1724909117872,20.0,144.31,144.24,21.966]
[1724909118272,20.0,144.32,144.24,21.966]
[1724909118863,20.0,144.32,144.25,1.37720734]
[1724909119783,20.0,144.32,144.25,14.31051123]
[1724909119963,20.0,144.33,144.25,14.31051123]
[1724909122101,20.0,144.33,144.26,21.9368]
[1724909122279,20.0,144.34,144.27,1.37748152]
[1724909122778,20.0,144.34,144.27,14.31078541]
[1724909122969,39.86090389,144.35,144.28,15.5467]
[1724909124082,41.06863935,144.35,144.28,15.5467]
[1724909126563,6.9281,144.34,144.28,15.5467]
[1724909127877,34.14103935,144.35,144.28,15.5467]
[1724909128081,21.20773546,144.35,144.28,15.5467]
[1724909132177,28.13533546,144.35,144.28,15.5467]
[1724909132475,6.9282,144.34,144.28,15.5467]
[1724909133812,6.9282,144.34,144.28,16.93046147]
[1724909135496,6.9282,144.34,144.28,15.5467]
[1724909135893,28.13543546,144.35,144.28,15.5467]
[1724909136777,21.20773546,144.35,144.29,1.3859656]
[1724909136976,21.20773546,144.35,144.28,15.5467]
[1724909136977,1.20773546,144.35,144.3,7.91121141]
[1724909137192,20.0,144.36,144.3,7.91121141]
[1724909137897,26.9274,144.36,144.3,6.5254]
[1724909138499,12.93330389,144.35,144.3,6.5254]
[1724909139405,19.86100389,144.35,144.3,6.5254]
[1724909145089,12.93330389,144.35,144.3,6.5254]
[1724909148092,26.9274,144.36,144.3,6.5254]
[1724909148299,39.86070389,144.36,144.3,6.5254]
[1724909150296,6.9276,144.35,144.3,6.5254]
[1724909152897,19.86170389,144.34,144.3,6.5254]
[1724909154986,12.93330389,144.32,144.28,15.5467]
[1724909155701,20.12549,144.36,144.28,15.5467]
[1724909155907,19.86200389,144.33,144.28,15.5467]
[1724909158413,1.20800444,144.34,144.25,16.4159]
[1724909158414,19.86410389,144.29,144.25,16.4159]
[1724909158588,6.9314,144.28,144.25,16.4159]
[1724909160213,6.93,144.3,144.25,16.4159]
[1724909160517,20.0,144.32,144.26,6.1379]
[1724909161398,26.9291,144.32,144.26,6.1379]
[1724909161718,19.86300389,144.31,144.26,6.1379]
[1724909168532,20.0,144.3,144.26,6.1379]
[1724909171528,26.9301,144.3,144.26,6.1379]
[1724909172403,26.9301,144.3,144.25,16.4159]
[1724909172404,19.86410389,144.29,144.25,16.4159]
[1724909172605,20.0,144.3,144.22,21.3419]
[1724909172606,12.93330389,144.27,144.22,21.3419]
[1724909172829,20.0,144.26,144.22,21.3419]
[1724909176416,6.9326,144.25,144.2,6.9346]
[1724909176619,6.9326,144.25,144.18,15.6166]
[1724909178120,8.14132445,144.25,144.18,15.6166]
[1724909178310,8.14132445,144.25,144.21,6.9342]
[1724909178925,21.07462834,144.25,144.21,6.9342]
[1724909182627,8.14132445,144.25,144.21,6.9342]
[1724909182829,1.20872445,144.25,144.22,6.9337]
[1724909183119,26.932,144.26,144.22,6.9337]
[1724909184106,6.9325,144.25,144.21,6.9341]
[1724909184321,19.86580389,144.25,144.21,6.9341]
[1724909186114,19.86580389,144.25,144.2,6.9347]
[1724909186318,20.0,144.24,144.2,6.9347]
[1724909187328,20.0,144.24,144.21,6.9342]
[1724909187531,20.0,144.25,144.22,6.9338]
[1724909187737,20.0,144.26,144.22,6.9338]
[1724909188236,26.9321,144.26,144.22,6.9338]
[1724909193415,26.9321,144.26,144.21,6.9342]
[1724909195034,26.9321,144.26,144.22,6.9337]
[1724909195215,20.0,144.26,144.19,0.98752118]
[1724909195415,32.93330389,144.29,144.19,13.92082507]
[1724909195615,32.93330389,144.29,144.2,1.38663158]
[1724909195815,34.14164055,144.29,144.21,1.38666088]
[1724909196207,6.9311,144.28,144.21,1.38666088]
[1724909196407,20.0,144.27,144.21,1.38666088]
[1724909196816,26.9315,144.27,144.2,1.38666468]
[1724909198214,26.9315,144.27,144.23,6.9332]
[1724909198736,6.932,144.26,144.22,6.9338]
[1724909201738,32.93330389,144.27,144.21,6.9343]
[1724909201739,6.9325,144.25,144.21,6.9343]
[1724909201945,26.9331,144.24,144.18,15.6166]
[1724909202336,26.9331,144.24,144.2,6.9347]
[1724909205145,6.9334,144.23,144.19,6.9352]
[1724909215945,19.86670389,144.23,144.15,5.69608946]
[1724909216147,21.07564801,144.23,144.15,5.69608946]
[1724909216329,21.07564801,144.23,144.18,6.9353]
[1724909216650,1.20894412,144.23,144.2,6.9346]
[1724909216953,20.0,144.24,144.21,6.9342]
[1724909217258,1.20859373,144.26,144.18,12.93330389]
[1724909217429,19.86410389,144.29,144.24,6.9328]
[1724909217628,21.07241729,144.29,144.24,6.9328]
[1724909217941,6.931,144.28,144.24,6.9328]
[1724909218146,6.931,144.28,144.19,0.25098]
[1724909218351,12.93330389,144.27,144.19,5.94729035]
[1724909218552,12.93330389,144.27,144.2,0.69207577]
[1724909218850,20.0,144.26,144.2,0.69207577]
[1724909219948,20.0,144.26,144.19,0.12549]
[1724909220247,20.0,144.26,144.18,5.81984593]
[1724909220431,20.0,144.26,144.19,5.69435593]
[1724909220954,20.0,144.26,144.23,6.9332]
[1724909221137,26.932,144.26,144.19,5.69435593]
[1724909221335,26.932,144.26,144.18,5.69435593]
[1724909221654,26.932,144.26,144.19,5.69435593]
[1724909221947,26.932,144.26,144.18,5.69435593]
[1724909222150,26.932,144.26,144.17,34.61610389]
[1724909222151,26.932,144.26,144.19,5.69435593]
[1724909222351,26.932,144.26,144.22,6.9338]
[1724909224440,20.0,144.26,144.23,6.9333]
[1724909224952,20.0,144.27,144.23,6.9333]
[1724909225534,26.9315,144.27,144.23,6.9333]
[1724909226757,6.932,144.26,144.19,14.32002166]
[1724909226935,6.932,144.26,144.19,1.38671777]
[1724909227134,26.9315,144.27,144.22,6.9336]
[1724909229037,51.9319,144.26,144.22,6.9336]
[1724909233355,20.0,144.25,144.21,6.9342]
[1724909233563,26.9325,144.25,144.21,6.9342]
[1724909235057,26.9325,144.25,144.18,5.69709549]
[1724909235058,6.9329,144.24,144.19,9.94862825]
[1724909235363,6.9329,144.24,144.18,5.69709549]
[1724909235662,6.9329,144.24,144.19,3.01392312]
[1724909235870,6.9329,144.24,144.18,5.69709549]
[1724909236158,6.9329,144.24,144.2,6.9347]
[1724909237967,8.14168263,144.24,144.2,6.9347]
[1724909238862,8.14168263,144.24,144.21,6.9343]
[1724909238863,1.20878263,144.24,144.21,6.9343]
[1724909239245,26.9325,144.25,144.2,6.9346]
[1724909239444,28.14111053,144.25,144.2,6.9346]
[1724909245159,6.9328,144.24,144.19,6.9351]
[1724909246050,28.14101053,144.25,144.2,6.9347]
[1724909246647,28.14101053,144.25,144.18,5.69580096]
[1724909246648,21.20861053,144.25,144.21,6.9342]
[1724909246852,21.20861053,144.25,144.19,12.93330389]
[1724909247058,20.0,144.26,144.19,18.62910485]
[1724909247368,1.20838109,144.28,144.23,6.9329]
[1724909247569,21.07268498,144.28,144.22,6.9338]
[1724909248661,20.0,144.27,144.22,6.9338]
[1724909249271,26.9314,144.27,144.22,6.9338]
[1724909249475,26.9314,144.27,144.19,12.93330389]
[1724909249776,26.9314,144.27,144.19,5.69580096]
[1724909249944,26.9314,144.27,144.21,6.9341]
[1724909251554,12.93330389,144.26,144.2,6.9347]
[1724909251758,20.0,144.25,144.2,6.9347]
[1724909252876,20.0,144.26,144.2,6.9347]
[1724909253258,6.9327,144.25,144.2,6.9347]
[1724909253976,26.9319,144.26,144.21,6.9342]
[1724909254152,20.0,144.26,144.21,6.9342]
[1724909254355,20.0,144.26,144.2,1.38677009]
[1724909254856,20.0,144.26,144.23,6.9333]
[1724909255262,20.0,144.26,144.22,6.9337]
[1724909258761,20.0,144.26,144.2,1.38667503]
[1724909258967,26.9314,144.27,144.2,1.38667503]
[1724909259265,26.9314,144.27,144.19,12.93330389]
[1724909261073,26.9314,144.27,144.22,6.9337]
[1724909263379,20.0,144.27,144.19,12.93330389]
[1724909263564,6.9319,144.26,144.21,6.9343]